bitfinex/quotes_BTCUSD_20250826
["timestamp","ask_amount","ask_price","bid_price","bid_amount"]
[1756196281898,1.15025383,110600.0,110590.0,0.00578661]
[1756196282102,0.20979947,110600.0,110590.0,0.18663478]
[1756196283363,0.20979947,110600.0,110590.0,0.34067478]
[1756196283694,0.18183182,110600.0,110590.0,0.34067478]
[1756196284126,0.78228618,110600.0,110590.0,0.15982661]
[1756196284322,0.8017877,110600.0,110590.0,0.15982661]
[1756196284536,0.20133334,110600.0,110590.0,0.15982661]
[1756196284744,0.8017877,110600.0,110590.0,0.15982661]
[1756196285471,0.8017877,110600.0,110590.0,0.34067478]
[1756196285891,0.02050152,110600.0,110590.0,0.34067478]
[1756196286936,0.02050152,110600.0,110590.0,0.4321368]
[1756196287150,0.001,110600.0,110590.0,1.03259116]
[1756196287283,0.02050797,110600.0,110590.0,1.03259116]
[1756196287486,0.02050797,110600.0,110590.0,0.4321368]
[1756196287710,0.18183182,110600.0,110590.0,0.09509863]
[1756196287913,0.80179652,110600.0,110590.0,0.25360863]
[1756196288118,0.80179652,110600.0,110590.0,0.4344568]
[1756196288307,0.8102668,110600.0,110590.0,0.4344568]
[1756196288506,0.78228618,110600.0,110590.0,0.4354568]
[1756196288716,0.78128618,110600.0,110590.0,0.4354568]
[1756196288927,0.01951444,110600.0,110590.0,0.4354568]
[1756196289130,0.35941816,110610.0,110600.0,0.18083182]
[1756196289131,0.78127006,110610.0,110600.0,0.18083182]
[1756196289766,0.809256,110610.0,110600.0,0.00531]
[1756196290288,0.82719931,110610.0,110600.0,0.00531]
[1756196291091,0.22674495,110610.0,110600.0,0.00531]
[1756196291292,0.82719931,110610.0,110600.0,0.00531]
[1756196291501,0.81303169,110610.0,110600.0,0.00531]
[1756196291642,0.81303169,110610.0,110600.0,0.18614182]
[1756196291849,0.22674495,110610.0,110600.0,0.18614182]
[1756196292344,0.22674495,110610.0,110600.0,0.27760384]
[1756196292827,0.22574495,110610.0,110600.0,0.09677202]
[1756196292980,0.22574495,110610.0,110600.0,0.09877202]
[1756196293191,0.81203169,110610.0,110600.0,0.09346202]
[1756196293614,0.81204359,110610.0,110600.0,0.09662202]
[1756196294202,0.76535445,110610.0,110600.0,0.09877202]
[1756196294602,0.76535445,110610.0,110600.0,0.27960384]
[1756196295043,0.78405765,110610.0,110600.0,0.27960384]
[1756196295913,0.78405765,110610.0,110600.0,0.09877202]
[1756196296091,0.78405765,110610.0,110600.0,0.002]
[1756196296222,0.78405765,110610.0,110600.0,0.00731]
[1756196296814,0.76710244,110610.0,110600.0,0.00731]
[1756196297017,0.78405572,110610.0,110600.0,0.00731]
[1756196297358,0.76710244,110610.0,110600.0,0.00731]
[1756196297561,0.1808157,110610.0,110600.0,0.18814182]
[1756196298334,0.76710244,110610.0,110600.0,0.16132]
[1756196298741,0.76710244,110610.0,110600.0,0.16347]
[1756196298921,0.76710244,110610.0,110600.0,0.16132]
[1756196299143,0.76710244,110610.0,110600.0,0.15816]
[1756196299349,0.54769341,110610.0,110600.0,0.15816]
[1756196299527,0.72850911,110610.0,110600.0,0.15816]
[1756196299890,0.1808157,110610.0,110600.0,0.16132]
[1756196300089,0.76710244,110610.0,110600.0,0.16132]
[1756196300734,0.76710244,110610.0,110600.0,0.16347]
[1756196300949,0.76710244,110610.0,110600.0,0.34430182]
[1756196301406,0.1808157,110610.0,110600.0,0.34430182]
[1756196301617,0.1808157,110610.0,110600.0,0.16347]
[1756196301833,0.1808157,110610.0,110600.0,0.16351]
[1756196302053,0.76710244,110610.0,110600.0,0.002]
[1756196302266,0.76710244,110610.0,110600.0,0.1582]
[1756196302776,0.76710244,110610.0,110600.0,0.002]
[1756196302933,1.10710244,110610.0,110600.0,0.002]
[1756196303137,1.12405134,110610.0,110600.0,0.002]
[1756196304116,1.21549663,110610.0,110600.0,0.002]
[1756196304318,1.25516528,110610.0,110600.0,0.001]
[1756196304516,0.18083182,110600.0,110590.0,0.00047661]
[1756196304802,0.94030746,110600.0,110590.0,0.00047661]
[1756196306169,0.94878192,110600.0,110590.0,0.00047661]
[1756196306688,0.94878138,110600.0,110590.0,0.00047661]
[1756196307194,0.36249464,110600.0,110590.0,0.00047661]
[1756196307429,1.28978138,110600.0,110590.0,0.00047661]
[1756196307920,1.38122667,110600.0,110590.0,0.00047661]
[1756196308150,1.40075078,110600.0,110590.0,0.00047661]
[1756196309106,2.09594856,110600.0,110590.0,0.00047661]
[1756196309308,2.1267063,110600.0,110590.0,0.00047661]
[1756196309534,2.06788543,110600.0,110590.0,0.00047661]
[1756196309788,0.89531195,110600.0,110590.0,0.00047661]
[1756196310005,2.03524786,110600.0,110590.0,0.00047661]
[1756196310261,2.03424786,110600.0,110590.0,0.00047661]
[1756196310513,2.03624786,110600.0,110590.0,0.00047661]
[1756196310754,1.88000786,110600.0,110590.0,0.00047661]
[1756196310972,1.44984112,110600.0,110590.0,0.00047661]
[1756196311177,1.44988112,110600.0,110590.0,0.00047661]
[1756196311392,2.06505296,110600.0,110590.0,0.00047661]
[1756196312084,0.86359438,110600.0,110590.0,0.00047661]
[1756196312287,2.06505296,110600.0,110590.0,0.00047661]
[1756196313393,1.45023856,110600.0,110590.0,0.00047661]
[1756196314664,1.45013754,110600.0,110590.0,0.00047661]
[1756196315015,1.42573508,110600.0,110590.0,0.00047661]
[1756196315225,1.41938209,110600.0,110590.0,0.00047661]
[1756196316327,1.4024618,110600.0,110590.0,0.00047661]
[1756196316520,2.00601003,110600.0,110590.0,0.00047661]
[1756196317126,2.00600952,110600.0,110590.0,0.00047661]
[1756196317273,2.00596849,110600.0,110590.0,0.00047661]
[1756196318668,1.84992849,110600.0,110590.0,0.00047661]
[1756196318874,2.00596849,110600.0,110590.0,0.00047661]
[1756196319607,1.83301305,110600.0,110590.0,0.00047661]
[1756196319818,1.84992374,110600.0,110590.0,0.00047661]
[1756196320059,2.02400374,110600.0,110590.0,0.00047661]
[1756196320275,2.00588374,110600.0,110590.0,0.00047661]
[1756196321388,2.00576374,110600.0,110590.0,0.00047661]
[1756196322231,2.00580374,110600.0,110590.0,0.00047661]
[1756196322846,2.00576374,110600.0,110590.0,0.00047661]
[1756196325488,2.00564374,110600.0,110590.0,0.00047661]
[1756196326119,2.00564933,110600.0,110590.0,0.00047661]
[1756196326549,1.99719133,110600.0,110590.0,0.00047661]
[1756196326699,2.00565066,110600.0,110590.0,0.00047661]
[1756196327335,2.01199636,110600.0,110590.0,0.00047661]
[1756196327544,2.10344165,110600.0,110590.0,0.00047661]
[1756196327902,2.22784411,110600.0,110590.0,1e-08]
[1756196328026,2.26046853,110600.0,110590.0,1e-08]
[1756196328277,2.23606607,110600.0,110590.0,1e-08]
[1756196329281,2.31944633,110600.0,110590.0,1e-08]
[1756196329868,2.46944633,110600.0,110590.0,1e-08]
[1756196330014,7.4694251,110600.0,110590.0,1e-08]
[1756196330368,7.43680068,110600.0,110590.0,1e-08]
[1756196330780,7.24658636,110600.0,110590.0,1e-08]
[1756196330955,2.43477797,110600.0,110590.0,1e-08]
[1756196331409,7.46457515,110600.0,110590.0,1e-08]
[1756196331536,7.41568921,110600.0,110590.0,1e-08]
[1756196332194,7.48092516,110600.0,110590.0,1e-08]
[1756196332413,7.45311069,110600.0,110590.0,1e-08]
[1756196332617,7.41861637,110600.0,110590.0,1e-08]
[1756196333262,7.42061637,110600.0,110590.0,1e-08]
[1756196333697,7.41861637,110600.0,110590.0,1e-08]
[1756196333911,7.42161637,110600.0,110590.0,1e-08]
[1756196334132,0.52088088,110570.0,110560.0,0.00295]
[1756196334339,1.33680572,110570.0,110560.0,0.00509]
[1756196335487,1.35122197,110570.0,110560.0,0.00509]
[1756196335748,1.36818128,110570.0,110560.0,0.00509]
[1756196336746,1.97021195,110570.0,110560.0,0.00609]
[1756196336960,1.97656691,110570.0,110560.0,0.00609]
[1756196337169,1.98626635,110570.0,110560.0,0.00609]
[1756196337370,1.41777228,110570.0,110560.0,0.00609]
[1756196337527,1.22523568,110570.0,110560.0,0.00609]
[1756196337736,1.41749228,110570.0,110560.0,0.00609]
[1756196338938,1.41749296,110570.0,110560.0,0.00609]
[1756196339533,1.43652817,110570.0,110560.0,0.00609]
[1756196341223,1.41749296,110570.0,110560.0,0.00609]
[1756196341664,0.77741073,110570.0,110560.0,0.00609]
[1756196341878,1.2188814,110570.0,110560.0,0.00609]
[1756196342656,1.3783214,110570.0,110560.0,0.00609]
[1756196342868,1.2188814,110570.0,110560.0,0.00609]
[1756196343754,1.21887776,110570.0,110560.0,0.00609]
[1756196344179,1.21887517,110570.0,110560.0,0.00609]
[1756196344591,1.21040414,110570.0,110560.0,0.00609]
[1756196344770,1.21887574,110570.0,110560.0,0.00609]
[1756196344931,1.21887652,110570.0,110560.0,0.00609]
[1756196346312,1.37819652,110570.0,110560.0,0.00609]
[1756196346533,0.77716585,110570.0,110560.0,0.00609]
[1756196346738,1.37819652,110570.0,110560.0,0.00609]
[1756196347349,1.46964383,110570.0,110560.0,0.00609]
[1756196347566,1.41073627,110570.0,110560.0,0.00609]
[1756196347858,1.25141627,110570.0,110560.0,0.00609]
[1756196348109,2.01172694,110570.0,110560.0,0.00395]
[1756196348368,1.99367931,110570.0,110560.0,0.001]
[1756196348785,2.02969058,110570.0,110560.0,0.001]
[1756196349414,2.02969058,110570.0,110560.0,0.0061]
[1756196349625,1.39264864,110570.0,110560.0,0.0061]
[1756196350234,1.39264864,110570.0,110560.0,0.001]
[1756196350866,1.39264864,110570.0,110560.0,0.00403]
[1756196351075,1.39264864,110570.0,110560.0,0.0061]
[1756196351076,1.99367931,110570.0,110560.0,0.0061]
[1756196351282,1.39264864,110570.0,110560.0,0.0061]
[1756196352054,1.46224292,110570.0,110560.0,0.00403]
[1756196352324,1.46224292,110570.0,110560.0,0.001]
[1756196352757,1.46224292,110570.0,110560.0,0.00403]
[1756196352983,1.46224292,110570.0,110520.0,0.14285699]
[1756196352984,2.10259035,110570.0,110520.0,0.14285699]
[1756196353193,0.18094634,110530.0,110520.0,0.23431901]
[1756196353430,0.78197701,110530.0,110520.0,0.23638901]
[1756196354212,0.78197701,110530.0,110520.0,0.23941901]
[1756196354417,0.78206305,110530.0,110520.0,0.23941901]
[1756196354618,0.78206305,110530.0,110520.0,0.24541901]
[1756196354841,0.78206305,110530.0,110520.0,0.08066]
[1756196355073,0.78206305,110530.0,110520.0,0.0111]
[1756196355320,0.82702765,110530.0,110520.0,0.0111]
[1756196355524,0.82702765,110530.0,110520.0,0.0051]
[1756196355972,0.82702765,110530.0,110520.0,0.0101]
[1756196356157,0.82702765,110530.0,110520.0,0.0131]
[1756196356767,0.82702765,110530.0,110520.0,0.0101]
[1756196356927,0.82702792,110530.0,110520.0,0.0101]
[1756196357130,0.98602792,110530.0,110520.0,0.0101]
[1756196357594,0.98602792,110530.0,110520.0,0.0121]
[1756196357797,0.98602792,110530.0,110520.0,0.0131]
[1756196358169,1.32602792,110530.0,110520.0,0.0131]
[1756196359874,1.16702792,110530.0,110520.0,0.0131]
[1756196360080,1.1670223,110530.0,110520.0,0.0131]
[1756196361097,1.3257423,110530.0,110520.0,0.0131]
[1756196361313,0.56599163,110530.0,110520.0,0.0131]
[1756196361543,0.03657442,110530.0,110520.0,0.44412474]
[1756196361776,8.604e-05,110530.0,110520.0,0.44412474]
[1756196362663,8.604e-05,110530.0,110520.0,0.44312474]
[1756196362873,0.18103238,110530.0,110520.0,0.44312474]
[1756196363085,0.18103238,110530.0,110520.0,0.44512474]
[1756196364336,0.78206305,110530.0,110520.0,0.43812474]
[1756196364635,0.78206305,110530.0,110520.0,0.44212474]
[1756196365087,0.18103238,110530.0,110520.0,0.44212474]
[1756196368241,0.18103238,110530.0,110520.0,0.26116202]
[1756196368437,0.78206305,110530.0,110520.0,0.26116202]
[1756196368764,0.78206305,110530.0,110520.0,0.0111]
[1756196368991,0.78206305,110530.0,110520.0,0.006]
[1756196369547,0.94034305,110530.0,110520.0,0.006]
[1756196369929,0.18096272,110520.0,110510.0,0.162]
[1756196370138,0.78199339,110520.0,110510.0,0.00565]
[1756196370599,1.12199339,110520.0,110510.0,0.0004]
[1756196370816,1.75946616,110520.0,110510.0,0.0004]
[1756196371370,1.75946616,110520.0,110510.0,0.0024]
[1756196371791,1.75946616,110520.0,110510.0,0.0004]
[1756196372274,1.79234328,110520.0,110510.0,0.0014]
[1756196372692,1.79234328,110520.0,110510.0,0.0004]
[1756196372898,1.79233097,110520.0,110510.0,0.0004]
[1756196373529,1.7923293,110520.0,110510.0,0.0004]
[1756196373875,1.7933293,110520.0,110510.0,0.0004]
[1756196375073,1.79332819,110520.0,110510.0,0.0004]
[1756196375275,1.79332819,110520.0,110510.0,2e-07]
[1756196375862,1.88477348,110520.0,110510.0,2e-07]
[1756196376269,1.79332819,110520.0,110510.0,2e-07]
[1756196377247,1.91732681,110520.0,110510.0,2e-07]
[1756196377446,1.95121121,110520.0,110510.0,2e-07]
[1756196377883,1.96747951,110520.0,110510.0,2e-07]
[1756196378101,2.12539951,110520.0,110510.0,2e-07]
[1756196378311,2.2168448,110520.0,110510.0,2e-07]
[1756196381170,2.2158448,110520.0,110510.0,2e-07]
[1756196381411,2.2188448,110520.0,110510.0,2e-07]
[1756196381626,0.66398784,110520.0,110510.0,2e-07]
[1756196381837,0.66398784,110520.0,110510.0,0.0052502]
[1756196381838,1.42977863,110520.0,110510.0,0.0052502]
[1756196382037,1.39733989,110520.0,110510.0,0.0032402]
[1756196382243,1.42978012,110520.0,110510.0,0.0032402]
[1756196382603,1.41283131,110520.0,110510.0,0.0032402]
[1756196382830,1.42971839,110520.0,110510.0,0.0032402]
[1756196383229,1.24750667,110520.0,110510.0,0.0052502]
[1756196383438,1.24649236,110520.0,110510.0,0.0052502]
[1756196383673,1.18035533,110520.0,110510.0,0.0052502]
[1756196383881,1.30579659,110520.0,110510.0,0.0052502]
[1756196384284,1.99827255,110520.0,110510.0,2e-07]
[1756196384627,1.99627255,110520.0,110510.0,2e-07]
[1756196384825,0.70176592,110520.0,110510.0,0.0052502]
[1756196385039,1.30279659,110520.0,110510.0,0.0052502]
[1756196385803,1.30279659,110520.0,110510.0,0.0032402]
[1756196386209,1.30279659,110520.0,110510.0,2e-07]
[1756196386385,1.90382726,110520.0,110510.0,2e-07]
[1756196386714,1.99527255,110520.0,110510.0,2e-07]
[1756196387311,1.99527255,110520.0,110510.0,0.0032402]
[1756196387517,1.39424188,110520.0,110510.0,0.0032402]
[1756196387972,1.39424188,110520.0,110510.0,0.0052502]
[1756196387973,1.30279659,110520.0,110510.0,0.0052502]
[1756196388421,0.54388592,110520.0,110510.0,0.0052502]
[1756196388591,1.14491659,110520.0,110510.0,0.0052502]
[1756196388848,1.29654414,110520.0,110510.0,0.0052502]
[1756196389913,1.13858414,110520.0,110510.0,0.0052502]
[1756196390321,1.29646414,110520.0,110510.0,0.0052502]
[1756196390519,1.29642414,110520.0,110510.0,0.0052502]
[1756196390937,1.2721081,110520.0,110510.0,0.0052502]
[1756196391647,1.29642414,110520.0,110510.0,0.0052502]
[1756196392028,1.13858414,110520.0,110510.0,0.0052502]
[1756196392261,1.13858218,110520.0,110510.0,0.0052502]
[1756196392469,1.29633881,110520.0,110510.0,0.0052502]
[1756196392911,0.69530814,110520.0,110510.0,0.0052502]
[1756196393126,1.29625881,110520.0,110510.0,0.0052502]
[1756196393736,1.29625881,110520.0,110510.0,0.0062502]
[1756196393958,1.29625881,110520.0,110510.0,0.0072502]
[1756196394486,1.29617881,110520.0,110510.0,0.0072502]
[1756196395053,1.29613881,110520.0,110510.0,0.0072502]
[1756196395819,1.29613881,110520.0,110510.0,0.18822929]
[1756196396034,1.29613881,110520.0,110510.0,0.0072502]
[1756196396316,1.29613881,110520.0,110510.0,0.18822929]
[1756196396591,1.13857881,110520.0,110510.0,0.0072502]
[1756196398538,1.27174277,110520.0,110510.0,0.0072502]
[1756196398748,1.27174277,110520.0,110510.0,0.18822929]
[1756196398968,1.27174277,110520.0,110510.0,0.0072502]
[1756196400239,1.29605881,110520.0,110510.0,0.0072502]
[1756196400447,1.29601881,110520.0,110510.0,0.0072502]
[1756196401306,1.09740567,110520.0,110510.0,0.0072502]
[1756196401560,1.27161079,110520.0,110510.0,0.18822929]
[1756196401889,1.27161123,110520.0,110510.0,0.18822929]
[1756196402103,0.38489571,110520.0,110510.0,0.27969131]
[1756196402313,0.04489571,110520.0,110510.0,0.27969131]
[1756196402531,0.04489571,110520.0,110510.0,0.43693131]
[1756196402745,0.02797015,110520.0,110510.0,0.27969131]
[1756196402931,0.02797015,110520.0,110510.0,0.43693131]
[1756196402932,0.02795242,110520.0,110510.0,0.43693131]
[1756196403696,0.02795242,110520.0,110510.0,0.43593131]
[1756196404115,0.02795242,110520.0,110510.0,0.43793131]
[1756196404341,0.00846256,110520.0,110510.0,0.43793131]
[1756196405284,0.94111671,110530.0,110520.0,0.18096272]
[1756196405514,0.96904749,110530.0,110520.0,0.27441474]
[1756196405766,1.14999383,110530.0,110520.0,0.27752474]
[1756196406485,0.02801682,110530.0,110520.0,0.27752474]
[1756196406721,0.20896316,110530.0,110520.0,0.27752474]
[1756196407193,0.18948612,110530.0,110520.0,0.27852474]
[1756196407424,0.79051679,110530.0,110520.0,0.25456202]
[1756196407646,0.80998707,110530.0,110520.0,0.001]
[1756196407901,0.82688823,110530.0,110520.0,0.001]
[1756196408107,1.16688823,110530.0,110520.0,0.001]
[1756196408332,1.16688817,110530.0,110520.0,0.001]
[1756196409702,1.13051679,110530.0,110520.0,0.001]
[1756196410545,1.13051786,110530.0,110520.0,0.001]
[1756196411037,1.15,110530.0,110520.0,0.001]
[1756196411266,1.15000199,110530.0,110520.0,0.001]
[1756196413356,1.75103266,110530.0,110520.0,0.001]
[1756196413556,1.76794131,110530.0,110520.0,0.001]
[1756196413766,1.75103266,110530.0,110520.0,0.001]
[1756196414193,1.93393997,110530.0,110520.0,0.001]
[1756196414406,1.95084782,110530.0,110520.0,0.001]
[1756196414613,2.02044782,110530.0,110520.0,0.001]
[1756196414821,1.93534256,110530.0,110520.0,0.001]
[1756196415028,1.99445164,110530.0,110520.0,0.001]
[1756196415459,0.18096272,110520.0,110510.0,2e-07]
[1756196415673,1.58459085,110520.0,110510.0,2e-07]
[1756196417309,1.59093028,110520.0,110510.0,2e-07]
[1756196417714,1.68237557,110520.0,110510.0,2e-07]
[1756196418511,1.77383759,110520.0,110510.0,2e-07]
[1756196419996,1.7421355,110520.0,110510.0,2e-07]
[1756196420197,1.77383342,110520.0,110510.0,2e-07]
[1756196420736,1.68438813,110520.0,110510.0,2e-07]
[1756196422932,1.52766813,110520.0,110510.0,2e-07]
[1756196423138,1.68414813,110520.0,110510.0,2e-07]
[1756196424302,1.67780855,110520.0,110510.0,2e-07]
[1756196426107,1.52132855,110520.0,110510.0,2e-07]
[1756196426317,1.67760855,110520.0,110510.0,2e-07]
[1756196427315,2.05760063,110520.0,110510.0,2e-07]
[1756196427521,2.09868356,110520.0,110510.0,2e-07]
[1756196427717,2.0761405,110520.0,110510.0,2e-07]
[1756196427979,2.07613218,110520.0,110510.0,2e-07]
[1756196428180,2.1004945,110520.0,110510.0,2e-07]
[1756196429138,2.07613218,110520.0,110510.0,2e-07]
[1756196429925,2.38291848,110520.0,110510.0,2e-07]
[1756196430130,2.45000145,110520.0,110510.0,2e-07]
[1756196430333,7.49880635,110520.0,110510.0,2e-07]
[1756196430549,7.31613492,110520.0,110510.0,2e-07]
[1756196430726,7.49779423,110520.0,110510.0,2e-07]
[1756196431340,7.49779423,110520.0,110490.0,0.0004]
[1756196431341,0.52099547,110500.0,110490.0,1e-08]
[1756196431542,2.20333535,110500.0,110490.0,1e-08]
[1756196431775,2.33808211,110500.0,110490.0,1e-08]
[1756196431999,2.37052085,110500.0,110490.0,1e-08]
[1756196432204,2.33808211,110500.0,110490.0,1e-08]
[1756196432407,2.48808211,110500.0,110490.0,1e-08]
[1756196432609,2.52052085,110500.0,110490.0,1e-08]
[1756196432730,2.49621573,110500.0,110490.0,1e-08]
[1756196432932,2.49620885,110500.0,110490.0,1e-08]
[1756196433174,2.52050319,110500.0,110490.0,1e-08]
[1756196434190,2.52150319,110500.0,110490.0,1e-08]
[1756196434449,2.4981486,110500.0,110490.0,1e-08]
[1756196435658,7.58765292,110500.0,110490.0,1e-08]
[1756196436409,7.55521418,110500.0,110490.0,1e-08]
[1756196437928,7.55509418,110500.0,110490.0,1e-08]
[1756196438387,7.56925728,110500.0,110490.0,1e-08]
[1756196438760,0.53847726,110480.0,110470.0,1e-08]
[1756196438957,0.52106101,110460.0,110450.0,0.0004]
[1756196439159,1.31946255,110460.0,110450.0,0.00251]
[1756196439381,1.48508171,110460.0,110450.0,0.00251]
[1756196439706,1.51770765,110460.0,110450.0,0.00251]
[1756196440134,1.51770784,110460.0,110450.0,0.00298679]
[1756196440545,1.51976784,110460.0,110450.0,0.00298679]
[1756196440775,1.61121313,110460.0,110450.0,1e-08]
[1756196440994,2.47409457,110460.0,110450.0,1e-08]
[1756196441212,1.72315514,110440.0,110430.0,0.00359]
[1756196441428,1.98729528,110440.0,110430.0,0.0057]
[1756196441636,2.1223934,110440.0,110430.0,0.00584295]
[1756196441895,2.03304811,110440.0,110430.0,0.00054295]
[1756196442113,2.12902245,110440.0,110430.0,1e-08]
[1756196442321,2.24469669,110440.0,110430.0,1e-08]
[1756196442643,2.21869726,110440.0,110430.0,1e-08]
[1756196443278,2.21007139,110440.0,110430.0,1e-08]
[1756196443481,2.05419139,110440.0,110430.0,1e-08]
[1756196443687,2.1185861,110440.0,110430.0,1e-08]
[1756196444062,1.9627461,110440.0,110430.0,1e-08]
[1756196444446,0.1811266,110420.0,110410.0,0.00319]
[1756196444644,0.52120894,110420.0,110410.0,0.00544298]
[1756196444794,1.2136849,110420.0,110410.0,0.00544298]
[1756196445235,1.18949705,110420.0,110410.0,0.00544298]
[1756196446034,1.09801176,110420.0,110410.0,0.00544298]
[1756196446206,1.14638747,110420.0,110410.0,0.00544298]
[1756196447110,1.14650747,110420.0,110410.0,0.00544298]
[1756196447369,1.14650747,110420.0,110410.0,0.00744298]
[1756196447731,0.5454768,110420.0,110410.0,0.00744298]
[1756196447941,1.23795276,110420.0,110410.0,0.00744298]
[1756196448144,1.20570229,110420.0,110410.0,0.00744298]
[1756196448347,1.14647733,110420.0,110410.0,0.00744298]
[1756196448958,1.11420148,110420.0,110410.0,0.00744298]
[1756196449888,1.11419986,110420.0,110410.0,0.00744298]
[1756196451983,0.95819986,110420.0,110410.0,0.00744298]
[1756196452184,1.11427986,110420.0,110410.0,0.00744298]
[1756196452434,1.20396448,110420.0,110410.0,0.00744298]
[1756196453421,1.11415986,110420.0,110410.0,0.00744298]
[1756196454152,0.35716919,110420.0,110410.0,0.00744298]
[1756196454356,1.11617986,110420.0,110410.0,0.00425298]
[1756196454555,1.11617986,110420.0,110410.0,0.00744298]
[1756196455192,2.01189482,110420.0,110410.0,0.00214298]
[1756196455363,0.52115942,110400.0,110390.0,0.00359]
[1756196455570,1.19061794,110400.0,110390.0,0.00568769]
[1756196455771,1.34649794,110400.0,110390.0,0.00568769]
[1756196456028,1.34640669,110400.0,110390.0,0.00568769]
[1756196456156,1.19052669,110400.0,110390.0,0.00568769]
[1756196456391,1.34644669,110400.0,110390.0,0.00568769]
[1756196457025,1.34644669,110400.0,110390.0,0.00868769]
[1756196457226,1.39478118,110400.0,110390.0,0.00868769]
[1756196457674,1.40436563,110400.0,110390.0,0.00868769]
[1756196458590,1.38746465,110400.0,110390.0,0.00868769]
[1756196458742,1.40426773,110400.0,110390.0,0.00868769]
[1756196459178,1.37204474,110400.0,110390.0,0.00868769]
[1756196459507,1.37208474,110400.0,110390.0,0.00868769]
[1756196460432,1.97311541,110400.0,110390.0,0.00868769]
[1756196460620,1.21624474,110400.0,110390.0,0.00868769]
[1756196460822,1.37200474,110400.0,110390.0,0.00868769]
[1756196461889,0.61521407,110400.0,110390.0,0.00868769]
[1756196462323,0.77089407,110400.0,110390.0,0.18986352]
[1756196462524,0.77089407,110400.0,110390.0,0.00868769]
[1756196462921,1.37199411,110400.0,110390.0,0.00868769]
[1756196464961,0.77096344,110400.0,110390.0,0.00868769]
[1756196465124,1.37199411,110400.0,110390.0,0.00868769]
[1756196465521,1.21631411,110400.0,110390.0,0.00868769]
[1756196465723,0.03236071,110400.0,110390.0,0.8846209]
[1756196465931,0.2377915,110400.0,110390.0,0.88235621]
[1756196466149,0.24732391,110400.0,110390.0,0.10014971]
[1756196466365,0.2149632,110400.0,110390.0,0.10014971]
[1756196466564,0.24732391,110400.0,110390.0,0.10014971]
[1756196466766,0.40336391,110400.0,110390.0,0.10014971]
[1756196467455,0.98012321,110400.0,110390.0,0.00868769]
[1756196467787,0.38109254,110400.0,110390.0,0.00868769]
[1756196468037,0.98012321,110400.0,110390.0,0.00868769]
[1756196468239,0.988566,110400.0,110390.0,0.00868769]
[1756196468634,0.38749533,110400.0,110390.0,0.18986352]
[1756196468837,0.38749533,110400.0,110390.0,0.00868769]
[1756196469642,6.38509533,110400.0,110390.0,0.18986352]
[1756196469814,6.38509533,110400.0,110390.0,0.00868769]
[1756196470016,6.38521533,110400.0,110390.0,0.00868769]
[1756196470418,6.38517533,110400.0,110390.0,0.00868769]
[1756196471711,6.988206,110400.0,110390.0,0.00851769]
[1756196471900,6.986206,110400.0,110390.0,0.00851769]
[1756196472339,6.988286,110400.0,110390.0,0.00851769]
[1756196472890,7.29592529,110400.0,110390.0,0.00549769]
[1756196473107,7.30226955,110400.0,110390.0,0.00549769]
[1756196473351,7.30226955,110400.0,110390.0,0.00344769]
[1756196473752,7.30226955,110400.0,110390.0,0.00851769]
[1756196473959,7.30026955,110400.0,110390.0,0.00851769]
[1756196474448,7.30226955,110400.0,110390.0,0.00851769]
[1756196475436,7.30226955,110400.0,110390.0,0.00549769]
[1756196475871,0.18117583,110390.0,110380.0,0.25825624]
[1756196476113,0.18117583,110390.0,110380.0,0.1686687]
[1756196476268,0.18117583,110390.0,110380.0,0.1707187]
[1756196476813,0.18117583,110390.0,110380.0,0.07418668]
[1756196476814,1.35652349,110390.0,110380.0,0.07418668]
[1756196477025,1.47130648,110390.0,110380.0,0.07418668]
[1756196477444,1.47130648,110390.0,110380.0,0.07718668]
[1756196477646,1.40606479,110390.0,110380.0,0.0036715]
[1756196477847,1.53391199,110390.0,110380.0,0.0006715]
[1756196478042,1.62535728,110390.0,110380.0,1e-08]
[1756196478246,6.17462149,110350.0,110340.0,0.22028]
[1756196478476,6.21841821,110350.0,110340.0,0.24458942]
[1756196478899,6.81944888,110350.0,110340.0,0.09438942]
[1756196479109,6.21841821,110350.0,110340.0,0.27791307]
[1756196479311,6.01285759,110350.0,110340.0,0.27564735]
[1756196479521,6.19409909,110350.0,110340.0,0.09438942]
[1756196479968,6.01285759,110350.0,110340.0,0.27791307]
[1756196480172,6.19409909,110350.0,110340.0,0.27764735]
[1756196480375,6.19409909,110350.0,110340.0,0.28066735]
[1756196480543,6.01285759,110350.0,110340.0,0.28066735]
[1756196481314,6.01285759,110350.0,110340.0,0.88169802]
[1756196482507,5.99337999,110350.0,110340.0,0.88169802]
[1756196482917,5.99337999,110350.0,110340.0,0.28066735]
[1756196483128,5.99337999,110350.0,110340.0,0.88169802]
[1756196483318,5.99337999,110350.0,110340.0,0.89914704]
[1756196483953,5.99337999,110350.0,110330.0,0.2687]
[1756196484160,0.38193247,110300.0,110290.0,0.41997235]
[1756196484278,0.2730563,110300.0,110290.0,1.69244302]
[1756196484492,0.2730563,110300.0,110290.0,1.2884469]
[1756196484883,0.2730563,110300.0,110290.0,1.43093791]
[1756196485053,0.2730563,110300.0,110290.0,1.92239993]
[1756196485498,0.2730563,110300.0,110290.0,1.92252923]
[1756196485704,0.2730563,110300.0,110290.0,1.93213822]
[1756196485922,0.2730563,110300.0,110290.0,1.93217822]
[1756196486143,0.2730563,110300.0,110290.0,1.34859657]
[1756196486361,0.2730563,110300.0,110290.0,1.77605822]
[1756196486622,0.2730563,110300.0,110290.0,1.78817822]
[1756196487370,0.2730563,110300.0,110290.0,1.80562724]
[1756196487613,0.2730563,110300.0,110290.0,1.78781163]
[1756196488587,0.2730563,110300.0,110290.0,1.18959657]
[1756196489104,0.2730563,110300.0,110290.0,1.19459657]
[1756196489650,0.2730563,110300.0,110290.0,1.18959657]
[1756196489848,0.2730563,110300.0,110290.0,1.19459657]
[1756196490624,0.58921506,110320.0,110310.0,0.18130722]
[1756196490874,0.58921506,110320.0,110310.0,0.42884924]
[1756196491113,0.59430506,110320.0,110310.0,0.42884924]
[1756196492403,0.59430506,110320.0,110310.0,0.43184924]
[1756196494460,0.59223506,110320.0,110310.0,0.43184924]
[1756196495055,0.59430506,110320.0,110310.0,0.43184924]
[1756196495432,0.59223506,110320.0,110310.0,0.43184924]
[1756196495645,0.59430506,110320.0,110310.0,0.43184924]
[1756196496465,0.49,110330.0,110320.0,0.18129079]
[1756196496667,1.08430506,110330.0,110320.0,0.27275281]
[1756196496870,0.58921506,110330.0,110320.0,0.27275281]
[1756196497231,0.59223506,110330.0,110320.0,0.27275281]
[1756196497462,0.34,110340.0,110330.0,0.18127435]
[1756196497674,0.93430506,110340.0,110330.0,0.42869637]
[1756196498222,0.58921506,110340.0,110330.0,0.42869637]
[1756196498638,0.5896905,110340.0,110330.0,0.42869637]